[Event "Early-Titled-Tuesday-Blitz-March-26-2024"]
[Site "Chess.com"]
[Date "2024.03.26"]
[Round "1"]
[White "PedroGil25"]
[Black "superchess02"]
[Result "0-1"]
[WhiteElo "2471"]
[BlackElo "2849"]
[TimeControl "180+1"]
[EndTime "8:08:36 PDT"]
[Termination "superchess02 won by resignation"]

1. Nf3 {[%clk 0:03:00.9]} 1... Nf6 {[%clk 0:02:59.5]} 2. b3 {[%clk 0:03:01.5]}
2... d5 {[%clk 0:02:59.7]} 3. Bb2 {[%clk 0:03:00.9]} 3... Bf5 {[%clk 0:02:59.8]}
4. g3 {[%clk 0:02:58.9]} 4... e6 {[%clk 0:02:59.4]} 5. Bg2 {[%clk 0:02:55.4]}
5... Bd6 {[%clk 0:02:49.4]} 6. O-O {[%clk 0:02:49.8]} 6... Nbd7 {[%clk
0:02:48.9]} 7. d3 {[%clk 0:02:47.9]} 7... h6 {[%clk 0:02:37.1]} 8. Nbd2 {[%clk
0:02:37.6]} 8... Bh7 {[%clk 0:02:37.3]} 9. Re1 {[%clk 0:02:36.3]} 9... e5 {[%clk
0:02:35.8]} 10. e4 {[%clk 0:02:36.6]} 10... d4 {[%clk 0:02:36]} 11. Nc4 {[%clk
0:02:35.4]} 11... Qe7 {[%clk 0:02:32.6]} 12. c3 {[%clk 0:02:35]} 12... dxc3
{[%clk 0:02:09]} 13. Bxc3 {[%clk 0:02:35.9]} 13... O-O {[%clk 0:02:09.8]} 14.
Rc1 {[%clk 0:02:30]} 14... Rad8 {[%clk 0:02:00.8]} 15. Qe2 {[%clk 0:02:29.4]}
15... Rfe8 {[%clk 0:01:58.7]} 16. Qb2 {[%clk 0:02:18.1]} 16... b5 {[%clk
0:01:47.9]} 17. Nxd6 {[%clk 0:02:12.9]} 17... Qxd6 {[%clk 0:01:48.8]} 18. b4
{[%clk 0:02:01.8]} 18... g5 {[%clk 0:01:15.8]} 19. Rcd1 {[%clk 0:01:59.5]} 19...
g4 {[%clk 0:01:13.9]} 20. Nh4 {[%clk 0:01:59.9]} 20... Nb6 {[%clk 0:01:14]} 21.
Nf5 {[%clk 0:01:57.5]} 21... Bxf5 {[%clk 0:01:12.5]} 22. exf5 {[%clk 0:01:58.4]}
22... Na4 {[%clk 0:01:12.6]} 23. Qa1 {[%clk 0:01:56.9]} 23... Nxc3 {[%clk
0:00:53.9]} 24. Qxc3 {[%clk 0:01:57.8]} 24... Re7 {[%clk 0:00:53.2]} 25. a3
{[%clk 0:01:39.5]} 25... Kg7 {[%clk 0:00:48.7]} 26. Qc6 {[%clk 0:01:25.3]} 26...
Qxc6 {[%clk 0:00:48.1]} 27. Bxc6 {[%clk 0:01:26.2]} 27... a6 {[%clk 0:00:47.9]}
28. d4 {[%clk 0:01:20.5]} 28... Rd6 {[%clk 0:00:31.1]} 29. Bg2 {[%clk
0:01:13.8]} 29... Red7 {[%clk 0:00:18.8]} 30. Rxe5 {[%clk 0:01:12]} 30... Rxd4
{[%clk 0:00:19.5]} 31. Rxd4 {[%clk 0:01:12.3]} 31... Rxd4 {[%clk 0:00:20.4]} 32.
Re3 {[%clk 0:01:05.1]} 32... Rd1+ {[%clk 0:00:20.1]} 33. Bf1 {[%clk 0:01:05.5]}
33... Rc1 {[%clk 0:00:20.3]} 34. Kg2 {[%clk 0:01:04]} 34... Nd5 {[%clk
0:00:19.9]} 35. Rd3 {[%clk 0:01:03.8]} 35... Nb6 {[%clk 0:00:19.4]} 36. Be2
{[%clk 0:01:03.3]} 36... h5 {[%clk 0:00:19.5]} 37. h3 {[%clk 0:01:03]} 37... Rc4
{[%clk 0:00:19.4]} 38. hxg4 {[%clk 0:01:02.9]} 38... hxg4 {[%clk 0:00:20.3]} 39.
Re3 {[%clk 0:00:45.2]} 39... Rd4 {[%clk 0:00:17.4]} 40. Rc3 {[%clk 0:00:37.8]}
40... Nc4 {[%clk 0:00:15.2]} 41. Bxc4 {[%clk 0:00:37.3]} 41... Rxc4 {[%clk
0:00:15.8]} 42. Rd3 {[%clk 0:00:32.9]} 42... Kf6 {[%clk 0:00:16]} 43. Rd5 {[%clk
0:00:30.9]} 43... Rc3 {[%clk 0:00:16.5]} 44. Rd4 {[%clk 0:00:27.8]} 44... Rc4
{[%clk 0:00:15.1]} 45. Rd5 {[%clk 0:00:27.3]} 45... c6 {[%clk 0:00:15.6]} 46.
Rd7 {[%clk 0:00:25.4]} 46... Rc3 {[%clk 0:00:15]} 47. Rc7 {[%clk 0:00:25.6]}
47... Rxa3 {[%clk 0:00:08]} 48. Rxc6+ {[%clk 0:00:26.2]} 48... Kxf5 {[%clk
0:00:08.7]} 49. Rc5+ {[%clk 0:00:25.8]} 49... Kg6 {[%clk 0:00:09.1]} 50. Rc6+
{[%clk 0:00:26]} 50... f6 {[%clk 0:00:09.5]} 51. Kf1 {[%clk 0:00:25.8]} 51...
Kg5 {[%clk 0:00:09.2]} 52. Ke2 {[%clk 0:00:26]} 52... Kf5 {[%clk 0:00:07.6]} 53.
Kf1 {[%clk 0:00:24.3]} 53... Ke5 {[%clk 0:00:07.4]} 54. Ke2 {[%clk 0:00:23.3]}
54... f5 {[%clk 0:00:07.1]} 55. Rc5+ {[%clk 0:00:23.2]} 55... Ke4 {[%clk
0:00:07.2]} 56. Rc6 {[%clk 0:00:23.5]} 56... Ra2+ {[%clk 0:00:07.4]} 57. Kf1
{[%clk 0:00:24]} 57... Ra4 {[%clk 0:00:06]} 58. Re6+ {[%clk 0:00:22.8]} 58...
Kd5 {[%clk 0:00:05.5]} 59. Rf6 {[%clk 0:00:23.3]} 59... Ke5 {[%clk 0:00:05.8]}
60. Rc6 {[%clk 0:00:23.5]} 60... Ra1+ {[%clk 0:00:06.4]} 61. Ke2 {[%clk
0:00:23.3]} 61... Ra2+ {[%clk 0:00:07.1]} 62. Kf1 {[%clk 0:00:23.2]} 62... Ra3
{[%clk 0:00:07.5]} 63. Rc5+ {[%clk 0:00:22.8]} 63... Ke4 {[%clk 0:00:08.2]} 64.
Rc6 {[%clk 0:00:22.4]} 64... Ra4 {[%clk 0:00:08.9]} 65. Re6+ {[%clk 0:00:20.7]}
65... Kd3 {[%clk 0:00:09.4]} 66. Rf6 {[%clk 0:00:21]} 66... Rxb4 {[%clk
0:00:10.1]} 67. Rxa6 {[%clk 0:00:21]} 67... Rd4 {[%clk 0:00:10.5]} 68. Rb6
{[%clk 0:00:20.4]} 68... Rd5 {[%clk 0:00:09.4]} 69. Ke1 {[%clk 0:00:21.3]} 69...
Kc3 {[%clk 0:00:09.7]} 70. Rc6+ {[%clk 0:00:21.1]} 70... Kb3 {[%clk 0:00:10.1]}
71. Ke2 {[%clk 0:00:21.7]} 71... b4 {[%clk 0:00:10.8]} 72. Ke3 {[%clk
0:00:22.4]} 72... Kb2 {[%clk 0:00:11.3]} 73. Kf4 {[%clk 0:00:19.7]} 73... b3
{[%clk 0:00:11.8]} 74. f3 {[%clk 0:00:19.5]} 74... gxf3 {[%clk 0:00:12.7]} 75.
Kxf3 {[%clk 0:00:20.4]} 75... Kb1 {[%clk 0:00:13]} 0-1

[Event "Early-Titled-Tuesday-Blitz-March-26-2024"]
[Site "Chess.com"]
[Date "2024.03.26"]
[Round "1"]
[White "Masterisback04"]
[Black "Barmen_EV"]
[Result "1-0"]
[WhiteElo "1991"]
[BlackElo "2550"]
[TimeControl "180+1"]
[EndTime "8:08:39 PDT"]
[Termination "Masterisback04 won by checkmate"]

1. e4 {[%clk 0:03:00.7]} 1... c5 {[%clk 0:03:00.2]} 2. Nf3 {[%clk 0:02:59.9]}
2... Nc6 {[%clk 0:03:00.8]} 3. c3 {[%clk 0:02:59.2]} 3... Nf6 {[%clk 0:03:00.6]}
4. Bd3 {[%clk 0:02:59.1]} 4... d5 {[%clk 0:02:58.9]} 5. e5 {[%clk 0:02:48.8]}
5... Nd7 {[%clk 0:02:59.1]} 6. Qe2 {[%clk 0:02:42.2]} 6... e6 {[%clk 0:02:58.6]}
7. O-O {[%clk 0:02:38.7]} 7... Be7 {[%clk 0:02:58.1]} 8. Bc2 {[%clk 0:02:37.7]}
8... g5 {[%clk 0:02:56.3]} 9. d4 {[%clk 0:02:15.5]} 9... g4 {[%clk 0:02:56.6]}
10. Ne1 {[%clk 0:02:13]} 10... cxd4 {[%clk 0:02:57.1]} 11. f4 {[%clk 0:02:13.3]}
11... dxc3 {[%clk 0:02:52.4]} 12. bxc3 {[%clk 0:02:05.1]} 12... b6 {[%clk
0:02:43]} 13. Kh1 {[%clk 0:01:47.9]} 13... Qc7 {[%clk 0:02:39.7]} 14. Qxg4
{[%clk 0:01:43.5]} 14... Ba6 {[%clk 0:02:37.9]} 15. Bd3 {[%clk 0:01:42.4]} 15...
Bxd3 {[%clk 0:02:37.4]} 16. Nxd3 {[%clk 0:01:43.3]} 16... O-O-O {[%clk
0:02:37.8]} 17. Na3 {[%clk 0:01:41]} 17... a6 {[%clk 0:02:35.1]} 18. Bb2 {[%clk
0:01:36.6]} 18... h5 {[%clk 0:02:23.8]} 19. Qe2 {[%clk 0:01:35.7]} 19... h4
{[%clk 0:02:24.1]} 20. Nb4 {[%clk 0:01:34]} 20... Nxb4 {[%clk 0:02:20.9]} 21.
cxb4 {[%clk 0:01:33.6]} 21... Qb7 {[%clk 0:02:21.5]} 22. Nc2 {[%clk 0:01:26.8]}
22... h3 {[%clk 0:02:19.4]} 23. g3 {[%clk 0:01:24.1]} 23... d4+ {[%clk
0:02:08.1]} 24. Kg1 {[%clk 0:01:23.8]} 24... Nxe5 {[%clk 0:01:45.8]} 25. Nxd4
{[%clk 0:01:18.7]} 25... Ng4 {[%clk 0:01:34.9]} 26. Rac1+ {[%clk 0:01:12.1]}
26... Kb8 {[%clk 0:01:23.7]} 27. Nc6+ {[%clk 0:01:11.8]} 27... Ka8 {[%clk
0:01:23.8]} 28. Qxg4 {[%clk 0:01:07.5]} 28... Bxb4 {[%clk 0:01:20.4]} 29. Bxh8
{[%clk 0:00:46.9]} 29... Bc5+ {[%clk 0:01:12.1]} 30. Rxc5 {[%clk 0:00:46.6]}
30... bxc5 {[%clk 0:01:13]} 31. Qf3 {[%clk 0:00:46.9]} 31... Rd2 {[%clk
0:00:54.9]} 32. Na5 {[%clk 0:00:42.5]} 32... Rg2+ {[%clk 0:00:55.4]} 33. Kh1
{[%clk 0:00:42.3]} 33... Qxf3 {[%clk 0:00:54.8]} 34. Rxf3 {[%clk 0:00:43.2]}
34... Rxa2 {[%clk 0:00:55.6]} 35. Nc4 {[%clk 0:00:40.2]} 35... Rc2 {[%clk
0:00:55.7]} 36. Rc3 {[%clk 0:00:38.9]} 36... Re2 {[%clk 0:00:55.4]} 37. Rc1
{[%clk 0:00:30.2]} 37... Kb7 {[%clk 0:00:55.9]} 38. Nd6+ {[%clk 0:00:24.7]}
38... Kc6 {[%clk 0:00:55.8]} 39. Nxf7 {[%clk 0:00:25.6]} 39... a5 {[%clk
0:00:52.9]} 40. Ng5 {[%clk 0:00:22.4]} 40... a4 {[%clk 0:00:51.8]} 41. Nxh3
{[%clk 0:00:21.3]} 41... Kb5 {[%clk 0:00:48.8]} 42. Ng1 {[%clk 0:00:19]} 42...
Rf2 {[%clk 0:00:47.2]} 43. h4 {[%clk 0:00:17.8]} 43... c4 {[%clk 0:00:47.6]} 44.
h5 {[%clk 0:00:17.8]} 44... Rd2 {[%clk 0:00:34.4]} 45. h6 {[%clk 0:00:17.3]}
45... Rd5 {[%clk 0:00:35.3]} 46. g4 {[%clk 0:00:16]} 46... a3 {[%clk 0:00:27.4]}
47. h7 {[%clk 0:00:14.6]} 47... Rd7 {[%clk 0:00:26.5]} 48. Ba1 {[%clk
0:00:09.7]} 48... Rxh7+ {[%clk 0:00:26.6]} 49. Kg2 {[%clk 0:00:10.2]} 49... Rd7
{[%clk 0:00:23.5]} 50. Nf3 {[%clk 0:00:09.8]} 50... Kb4 {[%clk 0:00:21.6]} 51.
g5 {[%clk 0:00:09.6]} 51... Kb3 {[%clk 0:00:16.3]} 52. Ne5 {[%clk 0:00:09.4]}
52... Rd2+ {[%clk 0:00:16.4]} 53. Kf3 {[%clk 0:00:09.2]} 53... a2 {[%clk
0:00:10.6]} 54. Nxc4 {[%clk 0:00:08.9]} 54... Rd3+ {[%clk 0:00:11.2]} 55. Ke4
{[%clk 0:00:07.7]} 55... Rh3 {[%clk 0:00:10.5]} 56. Nd2+ {[%clk 0:00:06.4]}
56... Kb4 {[%clk 0:00:10.3]} 57. g6 {[%clk 0:00:06.1]} 57... Rg3 {[%clk
0:00:10.6]} 58. g7 {[%clk 0:00:05.1]} 58... Rg2 {[%clk 0:00:10]} 59. Nf3 {[%clk
0:00:04.6]} 59... Re2+ {[%clk 0:00:04.9]} 60. Kd3 {[%clk 0:00:04.4]} 60... Rg2
{[%clk 0:00:05.7]} 61. Ng5 {[%clk 0:00:04.4]} 61... e5 {[%clk 0:00:05.3]} 62.
g8=Q {[%clk 0:00:03.3]} 62... e4+ {[%clk 0:00:06.2]} 63. Kxe4 {[%clk 0:00:03.3]}
63... Re2+ {[%clk 0:00:06.4]} 64. Kd3 {[%clk 0:00:03.6]} 64... Re6 {[%clk
0:00:06.6]} 65. Qxe6 {[%clk 0:00:03.5]} 65... Ka3 {[%clk 0:00:07.5]} 66. Qc6
{[%clk 0:00:03.1]} 66... Kb3 {[%clk 0:00:08.4]} 67. Qc4+ {[%clk 0:00:03.2]}
67... Ka3 {[%clk 0:00:08.7]} 68. Rc3# {[%clk 0:00:02.8]} 1-0

[Event "Early-Titled-Tuesday-Blitz-March-26-2024"]
[Site "Chess.com"]
[Date "2024.03.26"]
[Round "1"]
[White "ChristopherYoo"]
[Black "joksijoksi"]
[Result "1-0"]
[WhiteElo "2973"]
[BlackElo "2525"]
[TimeControl "180+1"]
[EndTime "8:08:41 PDT"]
[Termination "ChristopherYoo won by resignation"]

1. d4 {[%clk 0:03:00.9]} 1... d5 {[%clk 0:02:58.6]} 2. Nc3 {[%clk 0:02:57.2]}
2... Nf6 {[%clk 0:02:57.8]} 3. Bf4 {[%clk 0:02:54.6]} 3... a6 {[%clk 0:02:58]}
4. e3 {[%clk 0:02:52.6]} 4... c5 {[%clk 0:02:58.2]} 5. Nf3 {[%clk 0:02:42.7]}
5... Nc6 {[%clk 0:02:55.6]} 6. Be2 {[%clk 0:02:39.2]} 6... cxd4 {[%clk
0:02:50.5]} 7. exd4 {[%clk 0:02:36.3]} 7... Bf5 {[%clk 0:02:50.4]} 8. O-O {[%clk
0:02:34.9]} 8... e6 {[%clk 0:02:50.5]} 9. Ne5 {[%clk 0:02:16.5]} 9... Nxe5
{[%clk 0:02:46.9]} 10. dxe5 {[%clk 0:02:10.1]} 10... Ne4 {[%clk 0:02:40.4]} 11.
Nxe4 {[%clk 0:02:06.4]} 11... Bxe4 {[%clk 0:02:41.3]} 12. Bd3 {[%clk 0:02:06.4]}
12... Bxd3 {[%clk 0:02:38.4]} 13. cxd3 {[%clk 0:02:05.7]} 13... Be7 {[%clk
0:02:30.9]} 14. Qg4 {[%clk 0:02:03.2]} 14... g5 {[%clk 0:02:21.4]} 15. Be3
{[%clk 0:01:51.6]} 15... h5 {[%clk 0:02:21.2]} 16. Qd1 {[%clk 0:01:45.4]} 16...
Rc8 {[%clk 0:02:10]} 17. f4 {[%clk 0:01:40]} 17... g4 {[%clk 0:01:59.5]} 18. f5
{[%clk 0:01:37.4]} 18... Bg5 {[%clk 0:01:55.5]} 19. Qd2 {[%clk 0:01:29.6]} 19...
Bxe3+ {[%clk 0:01:44.5]} 20. Qxe3 {[%clk 0:01:28.7]} 20... Rc6 {[%clk
0:01:44.9]} 21. fxe6 {[%clk 0:01:26.1]} 21... fxe6 {[%clk 0:01:40.4]} 22. Rf6
{[%clk 0:01:25.8]} 22... Qb6 {[%clk 0:01:26.9]} 23. d4 {[%clk 0:01:23]} 23...
Rc4 {[%clk 0:01:06.5]} 24. Rd1 {[%clk 0:01:15.7]} 24... Kd7 {[%clk 0:00:31.4]}
25. Qf2 {[%clk 0:01:11.4]} 25... Re8 {[%clk 0:00:28.7]} 26. b3 {[%clk
0:01:09.4]} 26... Rc3 {[%clk 0:00:22.8]} 27. Rf7+ {[%clk 0:01:07.5]} 27... Kc8
{[%clk 0:00:22.8]} 28. Qd2 {[%clk 0:00:50.2]} 28... Qc6 {[%clk 0:00:22.5]} 29.
Rf2 {[%clk 0:00:44.2]} 29... Kb8 {[%clk 0:00:21]} 30. Rdf1 {[%clk 0:00:20.8]}
30... Rc8 {[%clk 0:00:21]} 31. Rf8 {[%clk 0:00:20.8]} 31... Rxf8 {[%clk
0:00:20.4]} 32. Rxf8+ {[%clk 0:00:20.8]} 32... Ka7 {[%clk 0:00:20.8]} 33. Rf1
{[%clk 0:00:20.7]} 33... Rc2 {[%clk 0:00:21]} 34. Qa5 {[%clk 0:00:20.5]} 34...
Qc3 {[%clk 0:00:19.9]} 35. Qxc3 {[%clk 0:00:20.4]} 35... Rxc3 {[%clk 0:00:20.8]}
36. Rf6 {[%clk 0:00:20.6]} 36... Rd3 {[%clk 0:00:20.3]} 37. Rxe6 {[%clk
0:00:20.7]} 37... Rxd4 {[%clk 0:00:20.7]} 38. Rd6 {[%clk 0:00:21]} 38... Kb8
{[%clk 0:00:20.9]} 39. e6 {[%clk 0:00:20]} 39... Re4 {[%clk 0:00:21]} 40. Rxd5
{[%clk 0:00:20]} 40... Rxe6 {[%clk 0:00:21]} 41. Rxh5 {[%clk 0:00:20.7]} 41...
Re2 {[%clk 0:00:20.8]} 42. Ra5 {[%clk 0:00:20.6]} 42... Kc7 {[%clk 0:00:20.2]}
43. h4 {[%clk 0:00:17]} 43... gxh3 {[%clk 0:00:19.9]} 44. gxh3 {[%clk
0:00:14.2]} 44... Kb6 {[%clk 0:00:18]} 45. Ra4 {[%clk 0:00:14]} 45... Kc6 {[%clk
0:00:15.6]} 46. h4 {[%clk 0:00:13.2]} 46... Kd6 {[%clk 0:00:16]} 47. h5 {[%clk
0:00:13.4]} 47... Ke6 {[%clk 0:00:16.3]} 48. h6 {[%clk 0:00:10.7]} 48... Kf7
{[%clk 0:00:15.7]} 49. Rg4 {[%clk 0:00:07.1]} 49... Re8 {[%clk 0:00:15.6]} 50.
Rg7+ {[%clk 0:00:05.5]} 50... Kf6 {[%clk 0:00:16.1]} 51. Rxb7 {[%clk 0:00:06.2]}
51... Kg6 {[%clk 0:00:16.1]} 52. h7 {[%clk 0:00:05.9]} 52... Rh8 {[%clk
0:00:15.9]} 53. Kf2 {[%clk 0:00:06.1]} 53... Rf8+ {[%clk 0:00:15.6]} 54. Ke3
{[%clk 0:00:05.7]} 54... a5 {[%clk 0:00:13.1]} 55. Kd4 {[%clk 0:00:06.2]} 55...
Rc8 {[%clk 0:00:13.1]} 56. Rc7 {[%clk 0:00:03.8]} 56... Rd8+ {[%clk 0:00:12.3]}
57. Kc4 {[%clk 0:00:04.1]} 57... Kh6 {[%clk 0:00:12]} 58. Kb5 {[%clk 0:00:04.2]}
58... Ra8 {[%clk 0:00:12.5]} 59. Ka4 {[%clk 0:00:02.5]} 59... Kg6 {[%clk
0:00:11.9]} 60. Rb7 {[%clk 0:00:03.1]} 60... Kh6 {[%clk 0:00:11.6]} 61. Kb5
{[%clk 0:00:03.6]} 61... Kg6 {[%clk 0:00:11.5]} 62. a4 {[%clk 0:00:04.3]} 62...
Kh6 {[%clk 0:00:11.4]} 63. Kb6 {[%clk 0:00:04.3]} 63... Kg6 {[%clk 0:00:10.9]}
64. Ra7 {[%clk 0:00:04.6]} 64... Rb8+ {[%clk 0:00:10.4]} 65. Kxa5 {[%clk
0:00:05.3]} 65... Kh6 {[%clk 0:00:10.4]} 66. b4 {[%clk 0:00:05.8]} 66... Rd8
{[%clk 0:00:10.3]} 67. b5 {[%clk 0:00:06.2]} 67... Rb8 {[%clk 0:00:10.5]} 68. b6
{[%clk 0:00:06.5]} 68... Rd8 {[%clk 0:00:10]} 69. b7 {[%clk 0:00:05.8]} 69...
Rb8 {[%clk 0:00:10]} 70. Kb6 {[%clk 0:00:06.5]} 70... Kxh7 {[%clk 0:00:09.5]}
71. Ra8 {[%clk 0:00:07]} 71... Rxb7+ {[%clk 0:00:09.5]} 72. Kxb7 {[%clk
0:00:07.2]} 1-0

[Event "Early-Titled-Tuesday-Blitz-March-26-2024"]
[Site "Chess.com"]
[Date "2024.03.26"]
[Round "1"]
[White "leoduarte"]
[Black "KarolKacprzak"]
[Result "0-1"]
[WhiteElo "2382"]
[BlackElo "2718"]
[TimeControl "180+1"]
[EndTime "8:08:41 PDT"]
[Termination "KarolKacprzak won on time"]

1. d4 {[%clk 0:02:58.5]} 1... Nf6 {[%clk 0:02:59.5]} 2. Nf3 {[%clk 0:02:56.5]}
2... d5 {[%clk 0:02:56.6]} 3. Bf4 {[%clk 0:02:55.8]} 3... c5 {[%clk 0:02:56.4]}
4. e3 {[%clk 0:02:55.9]} 4... Nc6 {[%clk 0:02:57]} 5. Nbd2 {[%clk 0:02:55.3]}
5... e6 {[%clk 0:02:56.3]} 6. c3 {[%clk 0:02:52.7]} 6... Bd6 {[%clk 0:02:56.3]}
7. Bg3 {[%clk 0:02:51]} 7... O-O {[%clk 0:02:56.9]} 8. Bd3 {[%clk 0:02:50.5]}
8... b6 {[%clk 0:02:57.2]} 9. e4 {[%clk 0:02:48.3]} 9... Be7 {[%clk 0:02:50.5]}
10. e5 {[%clk 0:02:48.1]} 10... Nh5 {[%clk 0:02:45.4]} 11. Ng5 {[%clk
0:02:47.2]} 11... Bxg5 {[%clk 0:02:46]} 12. Qxh5 {[%clk 0:02:45.9]} 12... g6
{[%clk 0:02:38.4]} 13. Qe2 {[%clk 0:02:40.2]} 13... cxd4 {[%clk 0:02:23.1]} 14.
h4 {[%clk 0:02:38.9]} 14... Bxd2+ {[%clk 0:02:14.6]} 15. Qxd2 {[%clk 0:02:34]}
15... dxc3 {[%clk 0:02:15.2]} 16. bxc3 {[%clk 0:02:23.9]} 16... f6 {[%clk
0:02:01.6]} 17. exf6 {[%clk 0:02:05.8]} 17... Qxf6 {[%clk 0:02:02.5]} 18. O-O
{[%clk 0:01:58.6]} 18... e5 {[%clk 0:01:56.4]} 19. Bb5 {[%clk 0:01:56.9]} 19...
Ne7 {[%clk 0:01:47.9]} 20. Qg5 {[%clk 0:01:42.2]} 20... Qxg5 {[%clk 0:01:35.2]}
21. hxg5 {[%clk 0:01:41.4]} 21... Rf5 {[%clk 0:01:35.8]} 22. Rfe1 {[%clk
0:01:25.2]} 22... e4 {[%clk 0:01:35.5]} 23. c4 {[%clk 0:01:24.2]} 23... Bb7
{[%clk 0:01:35.8]} 24. Bd7 {[%clk 0:01:11.9]} 24... d4 {[%clk 0:01:10.1]} 25.
Be6+ {[%clk 0:01:01.7]} 25... Kf8 {[%clk 0:01:04.1]} 26. Bxf5 {[%clk 0:00:46.4]}
26... Nxf5 {[%clk 0:01:05]} 27. Be5 {[%clk 0:00:45.9]} 27... d3 {[%clk
0:00:51.8]} 28. a4 {[%clk 0:00:30.6]} 28... Rc8 {[%clk 0:00:40.5]} 29. a5 {[%clk
0:00:26.8]} 29... Rxc4 {[%clk 0:00:33.6]} 30. axb6 {[%clk 0:00:26.3]} 30... axb6
{[%clk 0:00:34.5]} 31. Ra7 {[%clk 0:00:26.3]} 31... Bd5 {[%clk 0:00:33.8]} 32.
Bf4 {[%clk 0:00:12.9]} 32... e3 {[%clk 0:00:19.8]} 33. fxe3 {[%clk 0:00:02.1]}
33... Be4 {[%clk 0:00:19.8]} 34. Rd1 {[%clk 0:00:01.7]} 34... Rc2 {[%clk
0:00:19.5]} 35. Rd7 {[%clk 0:00:01.4]} 35... Rxg2+ {[%clk 0:00:19.2]} 36. Kf1
{[%clk 0:00:01.2]} 36... Rc2 {[%clk 0:00:14.8]} 37. R1xd3 {[%clk 0:00:01.3]}
37... Bxd3+ {[%clk 0:00:15.5]} 38. Rxd3 {[%clk 0:00:01.4]} 38... Kf7 {[%clk
0:00:16.4]} 39. Rd7+ {[%clk 0:00:01.6]} 39... Ke6 {[%clk 0:00:17]} 40. Rxh7
{[%clk 0:00:02.3]} 40... Rc6 {[%clk 0:00:17.1]} 41. Rh8 {[%clk 0:00:02.6]} 41...
Kd5 {[%clk 0:00:17.6]} 42. Rd8+ {[%clk 0:00:02.7]} 42... Ke4 {[%clk 0:00:17.6]}
43. Kg2 {[%clk 0:00:02.6]} 43... Rc2+ {[%clk 0:00:17.5]} 44. Kh3 {[%clk
0:00:02.4]} 44... Kf3 {[%clk 0:00:18]} 45. Rf8 {[%clk 0:00:02.3]} 45... Rc1
{[%clk 0:00:16.2]} 46. Bh2 {[%clk 0:00:01.8]} 46... Kxe3 {[%clk 0:00:15.5]} 47.
Rf6 {[%clk 0:00:01.6]} 47... Ke4 {[%clk 0:00:10.7]} 48. Rxg6 {[%clk 0:00:01.4]}
48... Rc3+ {[%clk 0:00:11.1]} 49. Kg4 {[%clk 0:00:01.7]} 49... Ne3+ {[%clk
0:00:11.7]} 50. Kh5 {[%clk 0:00:01.9]} 50... Rc1 {[%clk 0:00:09]} 51. Re6+
{[%clk 0:00:02.1]} 51... Kf3 {[%clk 0:00:09.1]} 52. Rf6+ {[%clk 0:00:02.3]}
52... Kg2 {[%clk 0:00:07.8]} 53. Bf4 {[%clk 0:00:02.8]} 53... Rh1+ {[%clk
0:00:07.6]} 54. Kg6 {[%clk 0:00:03]} 54... Nd5 {[%clk 0:00:08.5]} 55. Rf5 {[%clk
0:00:03.4]} 55... Ne7+ {[%clk 0:00:08.4]} 56. Kf6 {[%clk 0:00:03.7]} 56... Nxf5
{[%clk 0:00:09.3]} 57. Kxf5 {[%clk 0:00:04.6]} 57... Kf3 {[%clk 0:00:06.7]} 58.
Be5 {[%clk 0:00:04]} 58... Rh5 {[%clk 0:00:06.5]} 59. Kf6 {[%clk 0:00:04]} 59...
Ke4 {[%clk 0:00:05.1]} 60. Ba1 {[%clk 0:00:03.4]} 60... Rh1 {[%clk 0:00:04.1]}
61. Bb2 {[%clk 0:00:03.8]} 61... Rb1 {[%clk 0:00:04.1]} 62. Bc3 {[%clk
0:00:04.1]} 62... Rf1+ {[%clk 0:00:05]} 63. Kg7 {[%clk 0:00:03.4]} 63... Kf5
{[%clk 0:00:05.1]} 64. g6 {[%clk 0:00:02.2]} 64... Rg1 {[%clk 0:00:05.5]} 65.
Kf7 {[%clk 0:00:01.9]} 65... Rxg6 {[%clk 0:00:06.4]} 66. Ke7 {[%clk 0:00:02.4]}
66... Rc6 {[%clk 0:00:07]} 67. Bb4 {[%clk 0:00:01.9]} 67... Ke4 {[%clk
0:00:07.6]} 68. Kd7 {[%clk 0:00:02.3]} 68... Kd5 {[%clk 0:00:08.5]} 0-1